Workbook

Sheet Phễu bán hàng của chiến dịch
B1: Phễu Bán Hàng Của | F1: Biểu đồ bán hàng hình phễu thể hiện các giai đoạn bán hàng và dữ liệu tương ứng trong ô này.
B2: CHIẾN DỊCH
B3: GIAI ĐOẠN | C3: KHÁCH HÀNG TIỀM NĂNG | D3: ĐÃ MẤT | E3: KHÔNG ĐỦ ĐIỀU KIỆN
B4: Đã xác định | C4: 250 | D4: 20 | E4: 9
B5: Đã liên hệ | C5: 150 | D5: 15
B6: Cuộc thảo luận | C6: 100 | D6: 35
B7: Đã giành được | C7: 15
B9: MẸO: Nhập số liệu của bạn vào các ô ở trên để cập nhật biểu đồ bán hàng hình phễu.

Sheet hỗn tạp (hidden)
A1: *** Trang tính này vẫn bị ẩn ***
B7: Trung bình Y: | C7: =AVERAGE(AD13:AE13) -> 183
AD9: =AA12/2+8+50 -> 183
E10: Chuỗi & nhãn phần trăm | J10: Tổng số & nhãn giai đoạn | O10: Tổng số & nhãn Đã mất | T10: Tổng số & nhãn Không đủ điều kiện | Y10: Cạnh
B11: Giai đoạn | C11: x | E11: Khoảng bù | G11: 0.45 | H11: =3.85%*C7 -> 7.0455 | J11: Khoảng bù | L11: 0.45 | M11: =-3.85%*C7 -> -7.0455 | O11: Khoảng bù | Q11: 0.45 | R11: =-19.2%*C7 -> -35.136 | T11: Khoảng bù | V11: 0.45 | W11: =-25.7%*C7 -> -47.031 | Y11: 1.8 | AD11: =AD12-8 -> 50 | AE11: =AE12+8 -> 316
B12: Giới hạn | E12: Nhãn | F12: Giá trị | G12: x | H12: y | J12: Nhãn | K12: Giá trị | L12: x | M12: y | O12: Nhãn | P12: Giá trị | Q12: x | R12: y | T12: Nhãn | U12: Giá trị | V12: x | W12: y | Y12: 2 | AA12: =K13 -> 250 | AB12: Đã xác định | AD12: =-AA12/2+$AD$9 -> 58 | AE12: =AA12/2+$AD$9 -> 308 | AG12: =AE12 -> 308 | AH12: 0 | AI12: 0 | AJ12: 0
B13: Đã xác định | C13: 2 | E13: =F13 -> 100% | F13: 100% | G13: =$C13+G$11 -> 2.45 | H13: =$C$7+$H$11 -> 190.0455 | J13: =UPPER(B13)&" "&K13 -> ĐÃ XÁC ĐỊNH 250 | K13: ='Phễu bán hàng của chiến dịch'!C4 -> 250 | L13: =$C13+L$11 -> 2.45 | M13: =$C$7+$M$11 -> 175.9545 | O13: ="ĐÃ MẤT " & P13 -> ĐÃ MẤT 20 | P13: ='Phễu bán hàng của chiến dịch'!D4 -> 20 | Q13: =$C13+Q$11 -> 2.45 | R13: =$C$7+$R$11 -> 147.864 | T13: ="KHÔNG ĐỦ ĐIỀU KIỆN "&U13 -> KHÔNG ĐỦ ĐIỀU KIỆN 9 | U13: ='Phễu bán hàng của chiến dịch'!E4 -> 9 | V13: =$C13+V$11 -> 2.45 | W13: =$C$7+$W$11 -> 135.969 | Y13: =Y12+1 -> 3 | AB13: ĐÃ XÁC ĐỊNH | AD13: =-K13/2+$AD$9 -> 58 | AE13: =K13/2+$AD$9 -> 308 | AG13: =AE13 -> 308 | AH13: =AE13 -> 308 | AI13: 0 | AJ13: 0
B14: Đã liên hệ | C14: 3 | E14: =F14 -> 60% | F14: ='Phễu bán hàng của chiến dịch'!C5/'Phễu bán hàng của chiến dịch'!$C$4 -> 60% | G14: =$C14+G$11 -> 3.45 | H14: =$C$7+$H$11 -> 190.0455 | J14: =UPPER(B14)&" "&K14 -> ĐÃ LIÊN HỆ 150 | K14: ='Phễu bán hàng của chiến dịch'!C5 -> 150 | L14: =$C14+L$11 -> 3.45 | M14: =$C$7+$M$11 -> 175.9545 | O14: ="ĐÃ MẤT " & P14 -> ĐÃ MẤT 15 | P14: ='Phễu bán hàng của chiến dịch'!D5 -> 15 | Q14: =$C14+Q$11 -> 3.45 | R14: =$C$7+$R$11 -> 147.864 | Y14: =Y13+1 -> 4 | AB14: ĐÃ LIÊN HỆ | AD14: =-K14/2+$AD$9 -> 108 | AE14: =K14/2+$AD$9 -> 258 | AH14: =AE14 -> 258 | AI14: =AE14 -> 258 | AJ14: 0
B15: Cuộc thảo luận | C15: 4 | E15: =F15 -> 40% | F15: ='Phễu bán hàng của chiến dịch'!C6/'Phễu bán hàng của chiến dịch'!$C$4 -> 40% | G15: =$C15+G$11 -> 4.45 | H15: =$C$7+$H$11 -> 190.0455 | J15: =UPPER(B15)&" "&K15 -> CUỘC THẢO LUẬN 100 | K15: ='Phễu bán hàng của chiến dịch'!C6 -> 100 | L15: =$C15+L$11 -> 4.45 | M15: =$C$7+$M$11 -> 175.9545 | O15: ="ĐÃ MẤT " & P15 -> ĐÃ MẤT 35 | P15: ='Phễu bán hàng của chiến dịch'!D6 -> 35 | Q15: =$C15+Q$11 -> 4.45 | R15: =$C$7+$R$11 -> 147.864 | Y15: =Y14+1 -> 5 | AB15: CUỘC THẢO LUẬN | AD15: =-K15/2+$AD$9 -> 133 | AE15: =K15/2+$AD$9 -> 233 | AI15: =AE15 -> 233 | AJ15: =AE15 -> 233
B16: Đã giành được | C16: 5 | E16: =F16 -> 6% | F16: ='Phễu bán hàng của chiến dịch'!C7/'Phễu bán hàng của chiến dịch'!$C$4 -> 6% | G16: =$C16+G$11 - 0.1 -> 5.35 | H16: =$C$7+$H$11 -> 190.0455 | J16: =UPPER(B16) -> ĐÃ GIÀNH ĐƯỢC | K16: ='Phễu bán hàng của chiến dịch'!C7 -> 15 | L16: =$C16+L$11 -0.1 -> 5.35 | M16: =$C$7+$M$11 -> 175.9545 | Y16: =Y15+1 -> 6 | AB16: ĐÃ GIÀNH ĐƯỢC | AD16: =-K16/2+$AD$9 -> 175.5 | AE16: =K16/2+$AD$9 -> 190.5 | AJ16: =AE16 -> 190.5
B17: Đã giành được | C17: 6 | K17: =K16 -> 15 | L17: 6.44 | M17: =C7 -> 183
